fUST/lending_fUST_20240229
["ID","MTS","AMOUNT","RATE_DAILY","PERIOD"]
[315830580,1709198205538,-500.93750939,0.0001945,2]
[315830581,1709198205561,-500.0,0.0001945,2]
[315830582,1709198205583,-236.31060924,0.0001945,2]
[315830583,1709198205607,-500.0,0.0001945,2]
[315830584,1709198205629,-500.0,0.0001945,2]
[315830585,1709198205655,-500.0,0.0001945,2]
[315830586,1709198205681,-500.03493772,0.0001945,2]
[315830587,1709198205703,-428.24993993,0.0001945,2]
[315830588,1709198205725,-500.59802643,0.0001945,2]
[315830589,1709198205748,-500.0,0.0001945,2]
[315830590,1709198205782,-500.0,0.00019452,2]
[315830591,1709198205806,-696.39,0.00019452,2]
[315830592,1709198205831,-869.98,0.00019452,2]
[315830593,1709198205854,-500.0,0.00019452,2]
[315830594,1709198205876,-500.0,0.00019452,2]
[315830595,1709198205902,-1737.93,0.00019452,2]
[315830596,1709198205926,-500.0,0.00019452,2]
[315830597,1709198205949,-543.01,0.00019452,2]
[315830598,1709198205974,-500.0,0.00019452,2]
[315830599,1709198205998,-454.77814223,0.00019452,2]
[315830600,1709198206022,-1815.81,0.00019452,2]
[315830601,1709198206045,-500.0,0.00019452,2]
[315830602,1709198206069,-505.43,0.00019452,2]
[315830603,1709198206093,-499.0,0.00019724,2]
[315830604,1709198206118,-2530.46,0.00019725,2]
[315830605,1709198206145,-500.0,0.00019726,2]
[315830606,1709198206169,-696.39,0.00019726,2]
[315830607,1709198206193,-869.98,0.00019726,2]
[315830608,1709198206217,-500.0,0.00019726,2]
[315830609,1709198206240,-500.0,0.00019726,2]
[315830610,1709198206265,-1737.93,0.00019726,2]
[315830611,1709198206290,-500.0,0.00019726,2]
[315830612,1709198206317,-543.01,0.00019726,2]
[315830613,1709198206341,-500.0,0.00019726,2]
[315830614,1709198206365,-1815.81,0.00019726,2]
[315830615,1709198206391,-500.0,0.00019726,2]
[315830616,1709198206415,-505.43,0.00019726,2]
[315830617,1709198206441,-2530.46,0.00019999,2]
[315830618,1709198206464,-559.0,0.0002,2]
[315830619,1709198206492,-500.0,0.0002,2]
[315830620,1709198206516,-696.39,0.0002,2]
[315830621,1709198206541,-869.98,0.0002,2]
[315830622,1709198206565,-500.0,0.0002,2]
[315830623,1709198206590,-500.0,0.0002,2]
[315830624,1709198206614,-1737.93,0.0002,2]
[315830625,1709198206641,-500.0,0.0002,2]
[315830626,1709198206669,-543.01,0.0002,2]
[315830627,1709198206698,-500.0,0.0002,2]
[315830628,1709198206724,-1815.81,0.0002,2]
[315830629,1709198206747,-500.0,0.0002,2]
[315830630,1709198206770,-505.43,0.0002,2]
[315830631,1709198212492,724.99,0.00019178,2]
[315830632,1709198212776,724.99,0.00019452,2]
[315830633,1709198213049,724.99,0.00019726,2]
[315830634,1709198213333,724.99,0.0002,2]
[315830635,1709198217938,10459.925605,0.0001937,2]
[315830636,1709198218641,580.33,0.00019178,2]
[315830637,1709198218890,580.33,0.00019452,2]
[315830638,1709198219150,580.33,0.00019726,2]
[315830639,1709198219404,580.33,0.0002,2]
[315830640,1709198228089,500.0,0.00019178,2]
[315830641,1709198228368,500.0,0.00019452,2]
[315830642,1709198228633,500.0,0.00019726,2]
[315830643,1709198228896,337.33526548,0.0002,2]
[315830644,1709198245777,500.0,0.00019725,2]
[315830645,1709198246053,500.0,0.00019999,2]
[315830646,1709198258504,500.0,0.00019178,2]
[315830647,1709198258653,500.0,0.00019178,2]
[315830648,1709198258990,500.0,0.00019452,2]
[315830649,1709198259109,500.0,0.00019452,2]
[315830650,1709198259393,500.0,0.00019726,2]
[315830651,1709198259648,500.0,0.00019726,2]
[315830652,1709198259683,500.0,0.0002,2]
[315830653,1709198259911,500.0,0.0002,2]
[315830654,1709198272047,250.0,0.00018699,2]
[315830655,1709198275253,500.0,0.00019178,2]
[315830656,1709198275499,500.0,0.00019452,2]
[315830657,1709198275765,500.0,0.00019726,2]
[315830658,1709198276022,500.0,0.0002,2]
[315830659,1709198280832,1448.27,0.00019725,2]
[315830660,1709198281113,1448.27,0.00019999,2]
[315830661,1709198290018,241.0125324,0.00019548,2]
[315830662,1709198290058,500.0,0.00019178,2]
[315830663,1709198290323,500.0,0.00019452,2]
[315830664,1709198290597,500.0,0.00019726,2]
[315830665,1709198290850,500.0,0.0002,2]
[315830666,1709198342441,1513.18,0.00019178,2]
[315830667,1709198342741,1513.18,0.00019452,2]
[315830668,1709198343011,1513.18,0.00019726,2]
[315830669,1709198343267,1513.18,0.0002,2]
[315830670,1709198358117,58024.6468417,0.0002,2]
[315830699,1709199032749,-1634.53366324,0.00018899,2]
[315830701,1709199032759,-623.38533298,0.00018899,2]
[315830703,1709199032768,-1025.38925992,0.000189,2]
[315830705,1709199032777,-181.4058131,0.00018988,2]
[315830707,1709199032786,-500.0,0.00019725,2]
[315830709,1709199032798,-76.14555203,0.000199,2]
[315830713,1709199032829,-1135.85446009,0.000199,2]
[315830715,1709199032838,-182.29031465,0.000199,2]
[315830717,1709199032848,-2398.96,0.00019999,2]
[315830718,1709199032857,-604.15,0.00019999,2]
[315830719,1709199032866,-500.0,0.00019999,2]
[315830721,1709199032876,-500.0,0.00019999,2]
[315830723,1709199032885,-500.0,0.00019999,2]
[315830725,1709199032894,-514.13,0.00019999,2]
[315830727,1709199032907,-1392.28,0.00019999,2]
[315830729,1709199032917,-4599.92916329,0.0002,2]
[315830796,1709199038651,-3328.23285249,0.0002,2]
[315831184,1709199043649,-2466.0,0.0002,2]
[315831186,1709199043660,-20434.0752,0.0002,2]
[315831192,1709199043712,-4434.92945132,0.0002,2]
[315831194,1709199043721,-151.61197063,0.0002,2]
[315831196,1709199043730,-11613.0,0.0002,2]
[315831198,1709199043740,-154.98450155,0.0002,2]
[315831200,1709199043750,-238.50130044,0.00020052,2]
[315831202,1709199043759,-161.07565126,0.0002009,2]
[315831204,1709199043768,-500.0,0.00020154,2]
[315831206,1709199043778,-500.0,0.00020154,2]
[315831208,1709199043787,-500.0,0.00020154,2]
[315831211,1709199043799,-225.033,0.0002016,2]
[315831212,1709199043808,-225.034,0.0002016,2]
[315831214,1709199043818,-225.033,0.0002016,2]
[315831217,1709199043828,-225.034,0.0002016,2]
[315831218,1709199043838,-225.033,0.0002016,2]
[315831220,1709199043847,-3678.95,0.0002018,3]
[315831223,1709199043856,-3065.79,0.0002018,3]
[315831225,1709199043866,-2554.83,0.0002018,3]
[315831227,1709199043876,-2918.81565589,0.0002019,3]
[315831228,1709199043885,-6287.49111548,0.0002019,3]
[315831231,1709199043894,-5000.0,0.0002019,5]
[315831233,1709199043905,-2263.966886,0.0002019,3]
[315831234,1709199043914,-182.29031465,0.00020233,2]
[315831237,1709199043925,-2129.02,0.00020263,3]
[315831239,1709199043933,-636.14630204,0.0002027,2]
[315831241,1709199043943,-2398.96,0.00020273,2]
[315831243,1709199043952,-604.15,0.00020273,2]
[315831244,1709199043961,-500.0,0.00020273,2]
[315831247,1709199043970,-500.0,0.00020273,2]
[315831248,1709199043980,-500.0,0.00020273,2]
[315831250,1709199043989,-1392.28,0.00020273,2]
[315831252,1709199043999,-151.4307718,0.00020299,2]
[315831255,1709199044008,-549.86,0.00020428,2]
[315831257,1709199044018,-500.0,0.00020428,2]
[315831258,1709199044027,-500.0,0.00020428,2]
[315831260,1709199044036,-161.07565126,0.00020495,2]
[315831262,1709199044047,-2398.96,0.00020547,2]
[315831264,1709199044057,-604.15,0.00020547,2]
[315831266,1709199044066,-500.0,0.00020547,2]
[315831268,1709199044075,-500.0,0.00020547,2]
[315831271,1709199044084,-500.0,0.00020547,2]
[315831274,1709199044093,-1392.28,0.00020547,2]
[315831276,1709199044102,-182.29031465,0.00020567,2]
[315831279,1709199044110,-821.31,0.0002058,2]
[315831282,1709199044119,-821.31,0.0002058,2]
[315831285,1709199044129,-821.31,0.0002058,2]
[315831288,1709199044138,-821.311,0.0002058,2]
[315831291,1709199044147,-821.31,0.0002058,2]
[315831294,1709199044156,-500.0,0.00020702,2]
[315831296,1709199044165,-500.0,0.00020702,2]
[315831298,1709199044174,-1260.98,0.0002082,2]
[315831300,1709199044183,-500.0,0.0002082,2]
[315831302,1709199044192,-508.9,0.0002082,2]
[315831304,1709199044201,-2398.96,0.00020821,2]
[315831306,1709199044210,-604.15,0.00020821,2]
[315831308,1709199044219,-500.0,0.00020821,2]
[315831310,1709199044229,-500.0,0.00020821,2]
[315831313,1709199044238,-500.0,0.00020821,2]
[315831315,1709199044247,-1392.28,0.00020821,2]
[315831317,1709199044256,-161.07565126,0.000209,2]
[315831318,1709199044265,-182.29031465,0.000209,2]
[315831332,1709199044384,-500.0,0.00020976,2]
[315831334,1709199044394,-500.0,0.00020976,2]
[315831336,1709199044404,-258.81332577,0.00020998,2]
[315831338,1709199044414,-247.70944182,0.00020998,2]
[315831340,1709199044424,-546.31545259,0.00020998,2]
[315831341,1709199044433,-203.68114597,0.00020999,2]
[315831342,1709199044442,-179.02735652,0.00020999,2]
[315831343,1709199044454,-335.5090226,0.00020999,2]
[315831344,1709199044463,-500.0,0.00020999,2]
[315831345,1709199044473,-456.65199762,0.00020999,2]
[315831346,1709199044482,-500.0,0.00020999,2]
[315831347,1709199044492,-500.0,0.00020999,2]
[315831348,1709199044501,-500.0,0.00020999,2]
[315831349,1709199044511,-500.0,0.00020999,2]
[315831350,1709199044520,-500.0,0.00020999,2]
[315831351,1709199044530,-500.0,0.00020999,2]
[315831352,1709199044539,-358.09612924,0.00020999,2]
[315831353,1709199044550,-500.0,0.00020999,2]
[315831354,1709199044560,-500.0,0.00020999,2]
[315831355,1709199044569,-365.27729964,0.00020999,2]
[315831356,1709199044579,-500.0,0.00020999,2]
[315831357,1709199044588,-500.0,0.00020999,2]
[315831358,1709199044598,-500.0,0.00020999,2]
[315831359,1709199044607,-548.96279745,0.00020999,2]
[315831360,1709199044616,-300.0,0.00020999,2]
[315831361,1709199044626,-805736.80082019,0.00021,2]
[315831380,1709199044909,-249.993024,0.00021,2]
[315831549,1709199046956,-452.09203799,0.00020299,2]
[315831550,1709199046966,-10946.50473457,0.00021,2]
[315831551,1709199046978,-1265.6079,0.00021,2]
[315831552,1709199046991,-532.24884834,0.00021,2]
[315831553,1709199047963,-690.36,0.00021,2]
[315831554,1709199047975,-538.61450309,0.00021,2]
[315831601,1709200235720,-1634.53366324,0.00018866,2]
[315831602,1709200235730,-623.38533298,0.00018867,2]
[315831603,1709200235740,-683.59283995,0.000189,2]
[315831604,1709200235750,-1120.9203047,0.0001896,2]
[315831605,1709200235760,-174.198813,0.00019178,2]
[315831606,1709200235770,-194.840162,0.00019178,2]
[315831607,1709200235780,-1088.28,0.0001999,2]
[315831608,1709200235790,-368.73158525,0.00019999,2]
[315831609,1709200235800,-213.53965771,0.00019999,2]
[315831643,1709200238017,-286.46034229,0.00019999,2]
[315831645,1709200238027,-500.0,0.00019999,2]
[315831647,1709200238037,-155.02790502,0.0002,2]
[315831649,1709200238046,-238.50130044,0.0002,2]
[315831651,1709200238055,-231.83313596,0.00020189,2]
[315831653,1709200238065,-500.0,0.00020189,2]
[315831655,1709200238075,-328.59521067,0.00020189,2]
[315831658,1709200238087,-171.40478933,0.00020189,2]
[315831660,1709200238096,-1574.8951127,0.00020189,2]
[315831662,1709200238107,-424.2348873,0.00020189,2]
[315831664,1709200238117,-274.33030592,0.00020189,2]
[315831666,1709200238128,-297.78345678,0.00020189,2]
[315831668,1709200238139,-233.02654322,0.00020189,2]
[315831670,1709200238149,-500.0,0.00020189,2]
[315831672,1709200238158,-500.0,0.00020189,2]
[315831674,1709200238167,-500.0,0.00020189,2]
[315831676,1709200238176,-500.0,0.00020189,2]
[315831678,1709200238185,-500.0,0.00020189,2]
[315831680,1709200238194,-1160.24,0.00020189,2]
[315831682,1709200238203,-500.0,0.00020189,2]
[315831684,1709200238215,-2.43345678,0.00020189,2]
[315831775,1709200241014,-497.56654322,0.00020189,2]
[315831777,1709200241024,-500.0,0.00020189,2]
[315831779,1709200241034,-30714.52549802,0.0002019,5]
[315831781,1709200241043,-4178.63137451,0.0002019,5]
[315831783,1709200241053,-500.0,0.00020271,2]
[315831785,1709200241061,-500.0,0.00020271,2]
[315831787,1709200241071,-500.96626582,0.00020271,2]
[315831789,1709200241082,-500.0,0.00020271,2]
[315831791,1709200241092,-1208.44,0.00020271,2]
[315831793,1709200241101,-500.0,0.00020271,2]
[315831795,1709200241110,-500.0,0.00020271,2]
[315831796,1709200241119,-500.0,0.00020271,2]
[315831797,1709200241128,-193.75373056,0.00020299,2]
[315831798,1709200241138,-210.0,0.00020299,2]
[315831799,1709200241147,-1999.13,0.00020463,2]
[315831800,1709200241158,-530.81,0.00020463,2]
[315831801,1709200241168,-500.0,0.00020463,2]
[315831802,1709200241178,-500.0,0.00020463,2]
[315831803,1709200241188,-500.0,0.00020463,2]
[315831804,1709200241197,-1160.24,0.00020463,2]
[315831805,1709200241207,-500.0,0.00020545,2]
[315831806,1709200241217,-1208.44,0.00020545,2]
[315831807,1709200241227,-500.0,0.00020545,2]
[315831808,1709200241237,-500.0,0.00020545,2]
[315831809,1709200241251,-500.0,0.00020545,2]
[315831810,1709200241262,-2652.84,0.00020727,3]
[315831811,1709200241272,-1999.13,0.00020737,2]
[315831812,1709200241283,-530.81,0.00020737,2]
[315831813,1709200241294,-500.0,0.00020737,2]
[315831814,1709200241304,-500.0,0.00020737,2]
[315831815,1709200241313,-500.0,0.00020737,2]
[315831816,1709200241323,-1160.24,0.00020737,2]
[315831818,1709200241335,-3183.41,0.00020789,3]
[315831819,1709200241345,-3820.09,0.00020799,3]
[315831822,1709200241355,-500.0,0.00020819,2]
[315831823,1709200241366,-1208.44,0.00020819,2]
[315831825,1709200241376,-500.0,0.00020819,2]
[315831827,1709200241386,-500.0,0.00020819,2]
[315831829,1709200241395,-500.0,0.00020819,2]
[315831831,1709200241404,-1227.25414405,0.00020895,2]
[315831833,1709200241413,-5444.5321749,0.00020998,2]
[315831835,1709200241422,-51469.90055585,0.00020999,30]
[315831848,1709200241534,-7854.24641625,0.00020999,30]
[315831997,1709200242953,-9783.63681454,0.00020999,30]
[315831999,1709200242963,-3915.14932259,0.00021,2]
[315832001,1709200242975,-1785.17718593,0.00021,2]
[315832267,1709200246269,-2210.7,0.0002099,3]
[315832268,1709200246278,-16993.70392429,0.00021,2]
[315832269,1709200246293,-31276.224014,0.00021,2]
[315832270,1709200246304,-471.37355978,0.00021,2]
[315832271,1709200246340,-919.20955007,0.00021,2]
[315832272,1709200246351,-28742.2388641,0.00021,2]
[315832512,1709200977750,10000.0,0.000175,2]
[315832513,1709200983168,10000.0,0.000175,2]
[315832514,1709200988789,10000.0,0.000175,2]
[315832516,1709200995369,10000.0,0.000175,2]
[315832517,1709201002248,10000.0,0.000175,2]
[315832518,1709201009532,10000.0,0.000175,2]
[315832531,1709201288582,204.0876673,0.00017412,2]
[315832622,1709201432176,-623.38533298,0.00017899,2]
[315832624,1709201432185,-1634.53366324,0.00017899,2]
[315832626,1709201432195,-501.60047152,0.000179,3]
[315832628,1709201432204,-300.0,0.0001791,2]
[315832630,1709201432213,-5542.8877113,0.00017911,2]
[315832631,1709201432223,-284.869342,0.00017937,2]
[315832633,1709201432232,-333.65,0.00018878,3]
[315832635,1709201432241,-166.83,0.00018878,3]
[315832637,1709201432250,-500.5,0.00018878,3]
[315832639,1709201432263,-55029.77819044,0.00018887,2]
[315832641,1709201432272,-59790.03221906,0.00018888,2]
[315832643,1709201432282,-773.90867246,0.000189,2]
[315833050,1709201436524,-1135.92,0.0002104,15]
[315833258,1709201438476,-122.55162342,0.000189,2]
[315833260,1709201438486,-170.88078617,0.000189,2]
[315833262,1709201438495,-3405.0636809,0.0001897,2]
[315833264,1709201438507,-531.94035549,0.0001897,2]
[315833266,1709201438519,-639.02150515,0.00019,2]
[315833817,1709201444345,-2497.62756215,0.00019,2]
[315833835,1709201444502,-491.51411989,0.00019,2]
[315833837,1709201444516,-7321.91719625,0.00019,2]
[315833845,1709201444581,-1018.11895803,0.00019,2]
[315833847,1709201444591,-569.25998374,0.00019,2]
[315834000,1709201446159,-29520.91909663,0.00019,2]
[315834002,1709201446172,-1556.40689604,0.00019,2]
[315834013,1709201446281,-2500.0,0.00019,2]
[315834351,1709201800938,590.451224,0.00017338,2]
[315834856,1709202227846,24900.0,0.000167,2]
[315834858,1709202416488,303.04697081,0.00016118,2]
[315834860,1709202441976,295.225612,0.00016827,2]
[315834863,1709202544269,250.0,0.00016796,2]
[315834875,1709202579316,245.80639878,0.00016712,2]
[315834921,1709202640243,-623.38533298,0.00017609,2]
[315834922,1709202640253,-1634.53366324,0.0001761,2]
[315834923,1709202640262,-703.18655051,0.00017611,2]
[315834924,1709202640272,-164.22477025,0.00017653,2]
[315834925,1709202640281,-501.60047152,0.000179,3]
[315834926,1709202640290,-7359.38575488,0.00018,2]
[315834927,1709202640299,-597.64019725,0.000189,2]
[315834928,1709202640309,-5756.39552488,0.00019,2]
[315834929,1709202640318,-170.88078617,0.00019078,2]
[315834931,1709202640328,-166.82,0.00019168,3]
[315834933,1709202640337,-500.5,0.00019168,3]
[315834935,1709202640347,-348.79326323,0.00019178,2]
[315834938,1709202640356,-612.59126247,0.00019178,2]
[315834940,1709202640366,-500.0,0.00019178,2]
[315834942,1709202640376,-355.09942665,0.00019178,2]
[315834944,1709202640385,-400.12994264,0.00019178,2]
[315834947,1709202640395,-500.0,0.00019178,2]
[315834950,1709202640404,-500.0,0.00019178,2]
[315834953,1709202640413,-649.41641323,0.00019178,2]
[315834955,1709202640423,-500.0,0.00019178,2]
[315834958,1709202640432,-502.99407519,0.00019178,2]
[315834961,1709202640441,-501.53585634,0.00019178,2]
[315834964,1709202640451,-500.90695667,0.00019178,2]
[315834965,1709202640460,-500.0,0.00019178,2]
[315834966,1709202640471,-600.68,0.00019178,2]
[315834967,1709202640480,-500.0,0.00019178,2]
[315834968,1709202640490,-500.0,0.00019178,2]
[315834969,1709202640499,-500.0,0.00019178,2]
[315834970,1709202640508,-500.0,0.00019178,2]
[315834972,1709202640517,-294.53909541,0.00019178,2]
[315834973,1709202640527,-500.0,0.00019178,2]
[315834974,1709202640536,-500.0,0.00019178,2]
[315834975,1709202640546,-500.69409466,0.00019178,2]
[315834976,1709202640555,-500.38716555,0.00019178,2]
[315834977,1709202640564,-500.0,0.00019178,2]
[315834978,1709202640575,-500.0,0.00019178,2]
[315834980,1709202640584,-500.72078209,0.00019178,2]
[315834981,1709202640593,-500.0,0.00019178,2]
[315834982,1709202640603,-500.0,0.00019178,2]
[315834983,1709202640612,-503.25719014,0.00019178,2]
[315834984,1709202640622,-500.0,0.00019178,2]
[315834985,1709202640632,-500.0,0.00019178,2]
[315834987,1709202640642,-500.0,0.00019178,2]
[315834988,1709202640652,-500.0,0.00019178,2]
[315834990,1709202640662,-500.0,0.00019178,2]
[315834991,1709202640672,-500.0,0.00019178,2]
[315834992,1709202640681,-500.0,0.00019178,2]
[315834993,1709202640691,-500.0,0.00019178,2]
[315834994,1709202640701,-500.0,0.00019178,2]
[315834995,1709202640711,-500.0,0.00019178,2]
[315834996,1709202640722,-645.21325212,0.00019178,2]
[315834997,1709202640732,-303.51236209,0.00019178,2]
[315834998,1709202640741,-500.0,0.00019178,2]
[315834999,1709202640751,-500.0,0.00019178,2]
[315835000,1709202640760,-500.74207174,0.00019178,2]
[315835001,1709202640770,-293.09620288,0.00019178,2]
[315835002,1709202640779,-500.0,0.00019178,2]
[315835003,1709202640789,-500.69063904,0.00019178,2]
[315835005,1709202640799,-615.13557571,0.00019178,2]
[315835006,1709202640808,-500.75034193,0.00019178,2]
[315835007,1709202640818,-502.27733609,0.00019178,2]
[315835008,1709202640827,-500.0,0.00019178,2]
[315835009,1709202640837,-501.27072881,0.00019178,2]
[315835010,1709202640847,-500.0,0.00019178,2]
[315835011,1709202640856,-500.56934175,0.00019178,2]
[315835012,1709202640866,-500.0,0.00019178,2]
[315835013,1709202640876,-500.0,0.00019178,2]
[315835014,1709202640886,-500.0,0.00019178,2]
[315835015,1709202640896,-364.93095086,0.00019178,2]
[315835016,1709202640906,-500.0,0.00019178,2]
[315835017,1709202640915,-500.0,0.00019178,2]
[315835018,1709202640924,-500.0,0.00019178,2]
[315835019,1709202640934,-501.40368404,0.00019178,2]
[315835020,1709202640943,-500.0,0.00019178,2]
[315835021,1709202640952,-500.0,0.00019178,2]
[315835022,1709202640963,-501.74262197,0.00019178,2]
[315835023,1709202640975,-500.0,0.00019178,2]
[315835024,1709202640984,-501.58373137,0.00019178,2]
[315835025,1709202640993,-500.84561761,0.00019178,2]
[315835026,1709202641003,-500.0,0.00019178,2]
[315835027,1709202641012,-500.0,0.00019178,2]
[315835028,1709202641021,-500.0,0.00019178,2]
[315835029,1709202641031,-500.0,0.00019178,2]
[315835030,1709202641040,-500.0,0.00019178,2]
[315835031,1709202641050,-500.63918239,0.00019178,2]
[315835032,1709202641060,-500.0,0.00019178,2]
[315835033,1709202641069,-571.78014674,0.00019178,2]
[315835034,1709202641079,-500.0,0.00019178,2]
[315835035,1709202641088,-500.72343336,0.00019178,2]
[315835036,1709202641098,-500.0,0.00019178,2]
[315835037,1709202641107,-500.0,0.00019178,2]
[315835038,1709202641116,-501.22128666,0.00019178,2]
[315835039,1709202641125,-500.0,0.00019178,2]
[315835040,1709202641134,-271.43206679,0.00019178,2]
[315835041,1709202641144,-517.68,0.00019178,2]
[315835042,1709202641154,-500.0,0.00019178,2]
[315835043,1709202641163,-500.0,0.00019178,2]
[315835044,1709202641172,-500.0,0.00019178,2]
[315835045,1709202641181,-500.0,0.00019178,2]
[315835046,1709202641190,-500.0,0.00019178,2]
[315835047,1709202641199,-500.0,0.00019178,2]
[315835048,1709202641208,-500.0,0.00019178,2]
[315835049,1709202641218,-500.0,0.00019178,2]
[315835050,1709202641227,-500.0,0.00019178,2]
[315835051,1709202641236,-2069.54,0.00019178,2]
[315835052,1709202641245,-500.0,0.00019178,2]
[315835053,1709202641254,-500.0,0.00019178,2]
[315835054,1709202641262,-500.0,0.00019178,2]
[315835055,1709202641271,-500.0,0.00019178,2]
[315835056,1709202641281,-501.59162361,0.00019178,2]
[315835057,1709202641290,-500.0,0.00019178,2]
[315835058,1709202641298,-479.66319361,0.00019178,2]
[315835059,1709202641307,-501.5207383,0.00019178,2]
[315835060,1709202641316,-500.0,0.00019178,2]
[315835061,1709202641325,-668.74,0.00019178,2]
[315835063,1709202641334,-500.0,0.00019178,2]
[315835065,1709202641343,-500.0,0.00019178,2]
[315835066,1709202641352,-500.0,0.00019178,2]
[315835067,1709202641361,-500.0,0.00019178,2]
[315835068,1709202641370,-500.0,0.00019178,2]
[315835069,1709202641379,-500.0,0.00019178,2]
[315835070,1709202641388,-500.0,0.00019178,2]
[315835071,1709202641398,-500.0,0.00019178,2]
[315835072,1709202641407,-500.0,0.00019178,2]
[315835073,1709202641416,-500.0,0.00019178,2]
[315835074,1709202641425,-500.0,0.00019178,2]
[315835075,1709202641434,-500.0,0.00019178,2]
[315835076,1709202641444,-500.0,0.00019178,2]
[315835077,1709202641453,-544.41,0.00019178,2]
[315835079,1709202641462,-500.0,0.00019178,2]
[315835081,1709202641472,-501.22259027,0.00019178,2]
[315835083,1709202641482,-3975.61,0.00019178,2]
[315835085,1709202641491,-500.0,0.00019178,2]
[315835087,1709202641500,-500.0,0.00019178,2]
[315835089,1709202641509,-502.22049352,0.00019178,2]
[315835091,1709202641518,-500.0,0.00019178,2]
[315835093,1709202641527,-500.0,0.00019178,2]
[315835095,1709202641537,-759.18,0.00019178,2]
[315835097,1709202641546,-500.0,0.00019178,2]
[315835099,1709202641555,-500.0,0.00019178,2]
[315835101,1709202641564,-500.0,0.00019178,2]
[315835103,1709202641573,-500.0,0.00019178,2]
[315835105,1709202641582,-500.0,0.00019178,2]
[315835107,1709202641592,-500.0,0.00019178,2]
[315835109,1709202641600,-377.54615885,0.00019178,2]
[315835110,1709202641609,-500.0,0.00019178,2]
[315835112,1709202641618,-165.4960555,0.00019178,2]
[315835114,1709202641628,-500.0,0.00019178,2]
[315835116,1709202641638,-500.0,0.00019178,2]
[315835118,1709202641648,-500.0,0.00019178,2]
[315835120,1709202641657,-500.0,0.00019178,2]
[315835123,1709202641667,-171.31810075,0.00019178,2]
[315835124,1709202641676,-500.51940737,0.00019178,2]
[315835126,1709202641685,-2398.6,0.00019178,2]
[315835128,1709202641694,-500.0,0.00019178,2]
[315835130,1709202641703,-500.0,0.00019178,2]
[315835133,1709202641713,-623.5916357,0.00019178,2]
[315835135,1709202641724,-500.0,0.00019178,2]
[315835136,1709202641733,-500.0,0.00019178,2]
[315835138,1709202641743,-500.0,0.00019178,2]
[315835140,1709202641752,-500.0,0.00019178,2]
[315835143,1709202641761,-500.0,0.00019178,2]
[315835145,1709202641771,-174.198813,0.00019178,2]
[315835146,1709202641779,-166.666666,0.00019178,2]
[315835148,1709202641789,-16499.2734939,0.00019352,2]
[315835151,1709202641798,-153.0,0.00019397,2]
[315835153,1709202641808,-502.58002688,0.00019451,2]
[315835155,1709202641817,-500.0,0.00019451,2]
[315835157,1709202641826,-537.03,0.00019452,2]
[315835159,1709202641835,-500.0,0.00019452,2]
[315835160,1709202641845,-500.0,0.00019452,2]
[315835162,1709202641854,-258.15302439,0.00019452,2]
[315835164,1709202641863,-235.06584674,0.00019452,2]
[315835166,1709202641873,-500.0,0.00019452,2]
[315835168,1709202641882,-500.0,0.00019452,2]
[315835171,1709202641891,-500.0,0.00019452,2]